[Event "10th IM Marmaris Karia 2019"]
[Site "Marmaris"]
[Date "2019.10.18"]
[Round "3.1"]
[White "Kiremitciyan, Ari"]
[Black "Guseynov, Alihan"]
[Result "0-1"]
[ECO "B30"]
[WhiteElo "2286"]
[BlackElo "2335"]
[Annotator "ChessBase"]
[PlyCount "56"]
[EventDate "2019.10.19"]
[EventType "schev"]
[EventCountry "TUR"]
[SourceTitle "playchess.com"]
[Source "ChessBase"]
[SourceQuality "1"]
[TimeControl "5400+30"]

1. e4 {[%emt 0:00:30]} c5 {[%emt 0:00:30]} 2. Nf3 {[%emt 0:00:00]} Nc6 {[%emt 0:00:30]} 3. Bb5 {[%emt 0:00:00]} e6 {[%emt 0:02:30]} 4. O-O {[%emt 0:00:30]} Nge7 {[%emt 0:00:30]} 5. d4 {[%emt 0:00:00]} cxd4 {[%emt 0:00:30]} 6. Nxd4 {[%emt 0:00:00]} Ng6 {[%emt 0:06:30]} 7. Re1 {[%emt 0:08:30]} Qb6 {[%emt 0:03:30]} 8. Nxc6 {[%emt 0:03:30]} Bc5 {[%emt 0:14:30]} 9. Be3 {[%emt 0:12:30]} Bxe3 {[%emt 0:00:30]} 10. Rxe3 {[%emt 0:01:30]} bxc6 {[%emt 0:07:30]} 11. Bf1 {[%emt 0:01:30]} Qxb2 {[%emt 0:01:30]} 12. Na3 {[%emt 0:02:30]} Qb4 {[%emt 0:15:30]} 13. Nc4 {[%emt 0:03:30]} Qc5 {[%emt 0:04:30]} 14. Nd6+ {[%emt 0:18:30]} Ke7 {[%emt 0:00:30]} 15. Rd3 {[%emt 0:02:30]} Rd8 {[%emt 0:15:30]} 16. Qd2 {[%emt 0:04:30]} Ba6 {[%emt 0:05:00]} 17. c4 {[%emt 0:01:30]} Rab8 {[%emt 0:06:27]} 18. Rd1 {[%emt 0:05:30]} Kf8 {[%emt 0:05:56]} 19. Rg3 {[%emt 0:08:30]} f6 {[%emt 0:02:30]} 20. Qc3 {[%emt 0:05:09]} Rb6 {[%emt 0:02:23]} 21. Qf3 {[%emt 0:07:16]} Rdb8 {[%emt 0:02:22]} 22. Rh3 {[%emt 0:05:10]} Kg8 {[%emt 0:00:05]} 23. Rh5 {[%emt 0:01:03]} Ne5 {[%emt 0:01:28]} 24. Qh3 {[%emt 0:00:10]} h6 {[%emt 0:00:38]} 25. Qg3 {[%emt 0:05:07]} Rb1 {[%emt 0:00:31]} 26. Ne8 {[%emt 0:01:14]} Qe7 {[%emt 0:00:16]} 27. Rxb1 {[%emt 0:02:19]} Rxb1 {[%emt 0:00:08]} 28. Nxf6+ {[%emt 0:00:30]} Qxf6 {[%emt 0:00:07]} 0-1

[Event "10th IM Marmaris Karia 2019"]
[Site "Marmaris"]
[Date "2019.10.18"]
[Round "3.2"]
[White "Sahin, Ozgun"]
[Black "Semiev, Suhrab"]
[Result "0-1"]
[ECO "C45"]
[WhiteElo "2224"]
[BlackElo "2290"]
[Annotator "ChessBase"]
[PlyCount "75"]
[EventDate "2019.10.19"]
[EventType "schev"]
[EventCountry "TUR"]
[SourceTitle "playchess.com"]
[Source "ChessBase"]
[SourceQuality "1"]
[TimeControl "5400+30"]

1. e4 {[%emt 0:00:30]} e5 {[%emt 0:01:30]} 2. Nf3 {[%emt 0:00:00]} Nc6 {[%emt 0:00:30]} 3. d4 {[%emt 0:00:00]} exd4 {[%emt 0:00:00]} 4. Nxd4 {[%emt 0:00:30]} g6 {[%emt 0:03:00]} 5. Nxc6 {[%emt 0:01:30]} bxc6 {[%emt 0:00:30]} 6. Qd4 {[%emt 0:00:30]} Qf6 {[%emt 0:00:00]} 7. Qe3 {[%emt 0:09:30]} Bg7 {[%emt 0:02:00]} 8. Nc3 {[%emt 0:01:30]} Ne7 {[%emt 0:02:30]} 9. Bc4 {[%emt 0:00:00]} O-O {[%emt 0:01:30]} 10. O-O {[%emt 0:00:00]} d6 {[%emt 0:01:30]} 11. Qg3 {[%emt 0:02:30]} h6 {[%emt 0:00:30]} 12. Be3 {[%emt 0:00:30]} Be6 {[%emt 0:02:30]} 13. Bd3 {[%emt 0:04:30]} g5 {[%emt 0:16:30]} 14. f4 {[%emt 0:09:30]} gxf4 {[%emt 0:01:30]} 15. Bxf4 {[%emt 0:00:30]} Qd4+ {[%emt 0:09:30]} 16. Be3 {[%emt 0:03:30]} Qe5 {[%emt 0:00:30]} 17. Qxe5 {[%emt 0:03:30]} Bxe5 {[%emt 0:02:30]} 18. Bxh6 {[%emt 0:00:30]} Rfb8 {[%emt 0:00:00]} 19. Rab1 {[%emt 0:00:30]} Bxc3 {[%emt 0:00:00]} 20. bxc3 {[%emt 0:00:30]} Bxa2 {[%emt 0:00:30]} 21. Ra1 {[%emt 0:06:30]} Be6 {[%emt 0:00:30]} 22. Ra6 {[%emt 0:01:30]} Rb6 {[%emt 0:03:30]} 23. Ra5 {[%emt 0:00:30]} c5 {[%emt 0:00:30]} 24. e5 {[%emt 0:06:30]} Nc6 {[%emt 0:00:30]} 25. Ra4 {[%emt 0:00:30]} Nxe5 {[%emt 0:01:30]} 26. Rh4 {[%emt 0:01:30]} Nxd3 {[%emt 0:13:30]} 27. cxd3 {[%emt 0:00:30]} Rab8 {[%emt 0:00:30]} 28. Rf3 {[%emt 0:03:30]} Rb1+ {[%emt 0:00:30]} 29. Kf2 {[%emt 0:00:00]} R8b2+ {[%emt 0:00:30]} 30. Kg3 {[%emt 0:03:00]} Bd5 {[%emt 0:04:30]} 31. Re3 {[%emt 0:00:30]} Rxg2+ {[%emt 0:04:30]} 32. Kh3 {[%emt 0:00:30]} Rb8 {[%emt 0:02:30]} 33. Rh5 {[%emt 0:03:30]} Rg6 {[%emt 0:00:30]} 34. Rg3 {[%emt 0:03:30]} Be6+ {[%emt 0:00:00]} 35. Kh4 {[%emt 0:00:00]} Rb2 {[%emt 0:05:00]} 36. h3 {[%emt 0:00:00]} Rf2 {[%emt 0:00:30]} 37. Bg5 {[%emt 0:00:30]} Ra2 {[%emt 0:00:30]} 38. Bh6 {[%emt 0:00:30]} 0-1

[Event "10th IM Marmaris Karia 2019"]
[Site "Marmaris"]
[Date "2019.10.18"]
[Round "3.3"]
[White "Citak, Selim"]
[Black "Darban, Morteza"]
[Result "1-0"]
[ECO "A21"]
[WhiteElo "2210"]
[BlackElo "2285"]
[Annotator "ChessBase"]
[PlyCount "105"]
[EventDate "2019.10.19"]
[EventType "schev"]
[EventCountry "TUR"]
[SourceTitle "playchess.com"]
[Source "ChessBase"]
[SourceQuality "1"]
[TimeControl "5400+30"]

1. d4 {[%emt 0:00:30]} d6 {[%emt 0:01:30]} 2. c4 {[%emt 0:00:00]} e5 {[%emt 0:00:00]} 3. Nf3 {[%emt 0:00:00]} e4 {[%emt 0:00:00]} 4. Ng5 {[%emt 0:01:30]} f5 {[%emt 0:00:30]} 5. Nc3 {[%emt 0:01:30]} Nf6 {[%emt 0:04:30]} 6. d5 {[%emt 0:06:30]} h6 {[%emt 0:04:30]} 7. Nh3 {[%emt 0:00:30]} g5 {[%emt 0:00:00]} 8. f3 {[%emt 0:06:30]} Qe7 {[%emt 0:11:00]} 9. fxe4 {[%emt 0:00:00]} fxe4 {[%emt 0:00:30]} 10. e3 {[%emt 0:01:00]} Bg7 {[%emt 0:21:30]} 11. Be2 {[%emt 0:01:30]} Bf5 {[%emt 0:03:30]} 12. O-O {[%emt 0:02:30]} Bg6 {[%emt 0:01:30]} 13. Nb5 {[%emt 0:04:30]} O-O {[%emt 0:05:30]} 14. Nd4 {[%emt 0:00:30]} Rf7 {[%emt 0:01:30]} 15. Ne6 {[%emt 0:06:30]} Bh8 {[%emt 0:00:30]} 16. Bd2 {[%emt 0:01:30]} Na6 {[%emt 0:04:30]} 17. Bc3 {[%emt 0:01:30]} Nc5 {[%emt 0:00:30]} 18. Nd4 {[%emt 0:03:30]} a5 {[%emt 0:06:30]} 19. Qd2 {[%emt 0:04:30]} b6 {[%emt 0:00:30]} 20. Nf2 {[%emt 0:01:30]} Kh7 {[%emt 0:08:30]} 21. Nh1 {[%emt 0:02:30]} Raf8 {[%emt 0:05:03]} 22. Ng3 {[%emt 0:01:30]} Nfd7 {[%emt 0:00:03]} 23. Nc6 {[%emt 0:05:30]} Bxc3 {[%emt 0:02:17]} 24. Qxc3 {[%emt 0:01:30]} Rxf1+ {[%emt 0:00:15]} 25. Rxf1 {[%emt 0:00:00]} Rxf1+ {[%emt 0:00:16]} 26. Bxf1 {[%emt 0:04:00]} Qf6 {[%emt 0:00:43]} 27. Qd2 {[%emt 0:03:30]} Ne5 {[%emt 0:08:02]} 28. Nxe5 {[%emt 0:00:00]} Qxe5 {[%emt 0:00:08]} 29. Ne2 {[%emt 0:00:00]} Bf5 {[%emt 0:07:07]} 30. Nd4 {[%emt 0:00:30]} Bd7 {[%emt 0:00:02]} 31. b3 {[%emt 0:05:30]} Kg6 {[%emt 0:00:06]} 32. Be2 {[%emt 0:01:30]} h5 {[%emt 0:01:30]} 33. Bd1 {[%emt 0:04:30]} h4 {[%emt 0:02:41]} 34. Bc2 {[%emt 0:06:30]} g4 {[%emt 0:00:51]} 35. a3 {[%emt 0:00:30]} Bf5 {[%emt 0:00:21]} 36. Nb5 {[%emt 0:03:30]} Qa1+ {[%emt 0:01:02]} 37. Qd1 {[%emt 0:00:30]} Qxd1+ {[%emt 0:00:05]} 38. Bxd1 {[%emt 0:00:30]} Na6 {[%emt 0:00:05]} 39. Kf2 {[%emt 0:01:30]} Kf6 {[%emt 0:01:07]} 40. g3 {[%emt 0:00:41]} h3 {[%emt 0:00:12]} 41. Ke1 {[%emt 0:01:02]} Ke5 {[%emt 0:01:00]} 42. Kd2 {[%emt 0:00:38]} Bd7 {[%emt 0:00:26]} 43. Kc3 {[%emt 0:00:37]} Nc5 {[%emt 0:00:29]} 44. Nxc7 {[%emt 0:00:58]} Nd3 {[%emt 0:00:01]} 45. Kd2 {[%emt 0:02:12]} Kf5 {[%emt 0:00:47]} 46. Na8 {[%emt 0:01:58]} Ne5 {[%emt 0:00:50]} 47. Nxb6 {[%emt 0:01:07]} Be8 {[%emt 0:00:03]} 48. Nc8 {[%emt 0:00:34]} Kf6 {[%emt 0:00:25]} 49. Nxd6 {[%emt 0:00:26]} Bg6 {[%emt 0:00:09]} 50. c5 {[%emt 0:02:02]} Ke7 {[%emt 0:00:58]} 51. Nc4 {[%emt 0:00:22]} Nf3+ {[%emt 0:00:07]} 52. Bxf3 {[%emt 0:00:34]} exf3 {[%emt 0:00:04]} 53. Ne5 {[%emt 0:03:05]} 1-0

[Event "10th IM Marmaris Karia 2019"]
[Site "Marmaris"]
[Date "2019.10.18"]
[Round "3.4"]
[White "Gunduz, Umut Erdem"]
[Black "Rasulov, Vugar"]
[Result "0-1"]
[ECO "B17"]
[WhiteElo "2165"]
[BlackElo "2506"]
[Annotator "ChessBase"]
[PlyCount "113"]
[EventDate "2019.10.19"]
[EventType "schev"]
[EventCountry "TUR"]
[SourceTitle "playchess.com"]
[Source "ChessBase"]
[SourceQuality "1"]
[TimeControl "5400+30"]

1. e4 {[%emt 0:05:30]} c6 {[%emt 0:00:30]} 2. d4 {[%emt 0:00:30]} d5 {[%emt 0:00:30]} 3. Nc3 {[%emt 0:00:00]} dxe4 {[%emt 0:00:00]} 4. Nxe4 {[%emt 0:00:00]} Nd7 {[%emt 0:01:00]} 5. Qe2 {[%emt 0:02:30]} e6 {[%emt 0:00:30]} 6. Nf3 {[%emt 0:00:00]} Ngf6 {[%emt 0:00:30]} 7. g3 {[%emt 0:00:00]} Nxe4 {[%emt 0:02:30]} 8. Qxe4 {[%emt 0:00:30]} Qa5+ {[%emt 0:01:30]} 9. Bd2 {[%emt 0:04:30]} Qb6 {[%emt 0:00:30]} 10. O-O-O {[%emt 0:01:30]} Be7 {[%emt 0:00:30]} 11. Ne5 {[%emt 0:10:30]} Nf6 {[%emt 0:01:30]} 12. Qe1 {[%emt 0:01:30]} Qxd4 {[%emt 0:02:30]} 13. Bh6 {[%emt 0:05:30]} Qe4 {[%emt 0:02:30]} 14. Bxg7 {[%emt 0:00:30]} Rg8 {[%emt 0:00:30]} 15. Bxf6 {[%emt 0:01:30]} Qxe1 {[%emt 0:00:00]} 16. Rxe1 {[%emt 0:00:00]} Bxf6 {[%emt 0:00:00]} 17. f4 {[%emt 0:03:00]} Ke7 {[%emt 0:00:30]} 18. Bh3 {[%emt 0:10:30]} h5 {[%emt 0:01:30]} 19. Rhf1 {[%emt 0:06:30]} Rd8 {[%emt 0:05:30]} 20. Nd3 {[%emt 0:08:30]} Rd5 {[%emt 0:06:30]} 21. f5 {[%emt 0:02:30]} e5 {[%emt 0:05:30]} 22. Nf4 {[%emt 0:00:30]} Ra5 {[%emt 0:00:00]} 23. Nxh5 {[%emt 0:01:30]} Rxa2 {[%emt 0:03:00]} 24. Kb1 {[%emt 0:01:30]} Ra5 {[%emt 0:00:00]} 25. Rd1 {[%emt 0:01:30]} Rd5 {[%emt 0:00:00]} 26. Bg2 {[%emt 0:00:30]} Rd7 {[%emt 0:03:30]} 27. g4 {[%emt 0:05:30]} Bh4 {[%emt 0:01:30]} 28. Be4 {[%emt 0:02:30]} f6 {[%emt 0:00:30]} 29. Bd3 {[%emt 0:04:30]} Rd4 {[%emt 0:00:30]} 30. h3 {[%emt 0:01:30]} Bd7 {[%emt 0:00:30]} 31. c3 {[%emt 0:00:30]} Rd6 {[%emt 0:00:30]} 32. Bc4 {[%emt 0:00:30]} Rxd1+ {[%emt 0:01:30]} 33. Rxd1 {[%emt 0:00:30]} Rd8 {[%emt 0:00:30]} 34. Ng7 {[%emt 0:00:54]} c5 {[%emt 0:01:30]} 35. Kc2 {[%emt 0:13:09]} Ba4+ {[%emt 0:00:30]} 36. b3 {[%emt 0:00:24]} Rxd1 {[%emt 0:00:00]} 37. Kxd1 {[%emt 0:00:38]} Bc6 {[%emt 0:00:00]} 38. Ne6 {[%emt 0:01:40]} b6 {[%emt 0:01:30]} 39. Bf1 {[%emt 0:01:23]} a5 {[%emt 0:01:30]} 40. Kd2 {[%emt 0:01:06]} Bd5 {[%emt 0:00:30]} 41. c4 {[%emt 0:01:09]} Bf3 {[%emt 0:00:30]} 42. Be2 {[%emt 0:03:05]} Bg2 {[%emt 0:00:30]} 43. Ke3 {[%emt 0:00:03]} Kd6 {[%emt 0:00:30]} 44. Nf8 {[%emt 0:01:22]} Bg5+ {[%emt 0:00:30]} 45. Kf2 {[%emt 0:00:20]} Be4 {[%emt 0:00:00]} 46. Bd1 {[%emt 0:00:41]} Bd3 {[%emt 0:00:00]} 47. Ng6 {[%emt 0:00:33]} e4 {[%emt 0:00:30]} 48. h4 {[%emt 0:00:08]} Bd2 {[%emt 0:00:30]} 49. Kg3 {[%emt 0:00:51]} a4 {[%emt 0:00:30]} 50. bxa4 {[%emt 0:00:17]} Bxc4 {[%emt 0:00:00]} 51. g5 {[%emt 0:00:46]} fxg5 {[%emt 0:00:00]} 52. h5 {[%emt 0:00:11]} Bg8 {[%emt 0:01:30]} 53. Kg4 {[%emt 0:00:48]} c4 {[%emt 0:01:30]} 54. h6 {[%emt 0:00:17]} e3 {[%emt 0:00:30]} 55. Kf3 {[%emt 0:00:41]} c3 {[%emt 0:00:30]} 56. Nf8 {[%emt 0:00:33]} g4+ {[%emt 0:00:30]} 57. Ke2 {[%emt 0:00:30]} 0-1

[Event "10th IM Marmaris Karia 2019"]
[Site "Marmaris"]
[Date "2019.10.18"]
[Round "3.5"]
[White "Angun, Batu"]
[Black "Sevdimaliyev, Urfan"]
[Result "1-0"]
[ECO "E92"]
[WhiteElo "2165"]
[BlackElo "2361"]
[Annotator "ChessBase"]
[PlyCount "80"]
[EventDate "2019.10.19"]
[EventType "schev"]
[EventCountry "TUR"]
[SourceTitle "playchess.com"]
[Source "ChessBase"]
[SourceQuality "1"]
[TimeControl "5400+30"]

1. d4 {[%emt 0:05:30]} g6 {[%emt 0:01:30]} 2. c4 {[%emt 0:01:30]} Bg7 {[%emt 0:00:00]} 3. Nf3 {[%emt 0:00:30]} d6 {[%emt 0:00:00]} 4. Nc3 {[%emt 0:00:30]} Nf6 {[%emt 0:00:30]} 5. e4 {[%emt 0:00:00]} O-O {[%emt 0:00:30]} 6. Be2 {[%emt 0:00:00]} e5 {[%emt 0:01:30]} 7. d5 {[%emt 0:01:30]} a5 {[%emt 0:00:00]} 8. Bg5 {[%emt 0:00:00]} Na6 {[%emt 0:01:00]} 9. Nd2 {[%emt 0:00:00]} h6 {[%emt 0:01:30]} 10. Bh4 {[%emt 0:00:00]} Qe8 {[%emt 0:00:30]} 11. a3 {[%emt 0:01:00]} Bd7 {[%emt 0:02:30]} 12. b3 {[%emt 0:00:00]} Nh7 {[%emt 0:02:30]} 13. O-O {[%emt 0:00:00]} h5 {[%emt 0:02:30]} 14. f3 {[%emt 0:00:30]} Bh6 {[%emt 0:00:30]} 15. Kh1 {[%emt 0:00:00]} Be3 {[%emt 0:02:30]} 16. Rb1 {[%emt 0:01:00]} c6 {[%emt 0:01:30]} 17. b4 {[%emt 0:01:30]} axb4 {[%emt 0:01:30]} 18. axb4 {[%emt 0:00:30]} c5 {[%emt 0:01:30]} 19. bxc5 {[%emt 0:01:30]} Nxc5 {[%emt 0:00:30]} 20. Nb5 {[%emt 0:00:00]} Bxb5 {[%emt 0:00:30]} 21. cxb5 {[%emt 0:00:00]} Bxd2 {[%emt 0:02:30]} 22. Qxd2 {[%emt 0:00:30]} b6 {[%emt 0:00:30]} 23. Qb2 {[%emt 0:02:30]} Qd7 {[%emt 0:02:30]} 24. Ra1 {[%emt 0:00:30]} Qb7 {[%emt 0:01:30]} 25. Rxa8 {[%emt 0:05:30]} Rxa8 {[%emt 0:00:30]} 26. Ra1 {[%emt 0:04:30]} Nf8 {[%emt 0:05:30]} 27. Ra3 {[%emt 0:02:30]} Kg7 {[%emt 0:01:30]} 28. Rxa8 {[%emt 0:10:30]} Qxa8 {[%emt 0:00:30]} 29. Be7 {[%emt 0:00:30]} Qb8 {[%emt 0:03:30]} 30. Bg5 {[%emt 0:05:30]} f6 {[%emt 0:01:30]} 31. Bc1 {[%emt 0:00:00]} f5 {[%emt 0:01:30]} 32. exf5 {[%emt 0:00:00]} gxf5 {[%emt 0:00:00]} 33. f4 {[%emt 0:00:30]} h4 {[%emt 0:01:00]} 34. fxe5 {[%emt 0:02:30]} dxe5 {[%emt 0:02:30]} 35. Qd2 {[%emt 0:00:30]} f4 {[%emt 0:00:30]} 36. Bb2 {[%emt 0:00:00]} Ng6 {[%emt 0:00:30]} 37. d6 {[%emt 0:01:00]} Qd8 {[%emt 0:01:30]} 38. Qd5 {[%emt 0:00:30]} Kf6 {[%emt 0:00:30]} 39. Bg4 {[%emt 0:01:30]} Qe8 {[%emt 0:04:30]} 40. d7 {[%emt 0:01:30]} Qd8 {[%emt 0:00:30]} 1-0

[Event "10th IM Marmaris Karia 2019"]
[Site "Marmaris"]
[Date "2019.10.18"]
[Round "4.1"]
[White "Semiev, Suhrab"]
[Black "Kiremitciyan, Ari"]
[Result "1/2-1/2"]
[ECO "A18"]
[WhiteElo "2290"]
[BlackElo "2286"]
[Annotator "NA"]
[PlyCount "96"]
[EventDate "2019.10.19"]
[EventType "schev"]
[EventCountry "TUR"]
[SourceTitle "playchess.com"]
[Source "ChessBase"]
[SourceQuality "1"]
[TimeControl "5400+30"]

1. c4 {[%emt 0:00:30]} Nf6 {[%emt 0:00:30]} 2. Nc3 {[%emt 0:00:30]} e6 {[%emt 0:01:30]} 3. e4 {[%emt 0:00:30]} d5 {[%emt 0:00:30]} 4. e5 {[%emt 0:00:30]} d4 {[%emt 0:00:00]} 5. exf6 {[%emt 0:00:30]} dxc3 {[%emt 0:00:00]} 6. bxc3 {[%emt 0:00:00]} Qxf6 {[%emt 0:00:30]} 7. d4 {[%emt 0:00:00]} b6 {[%emt 0:00:30]} 8. Nf3 {[%emt 0:08:30]} Bb7 {[%emt 0:06:30]} 9. Bg5 {[%emt 0:09:30]} Bxf3 {[%emt 0:03:30]} 10. Qxf3 {[%emt 0:00:00]} Qxf3 {[%emt 0:00:00]} 11. gxf3 {[%emt 0:00:00]} Be7 {[%emt 0:00:00]} 12. Be3 {[%emt 0:00:30]} Nc6 {[%emt 0:07:30]} 13. c5 {[%emt 0:00:30]} Na5 {[%emt 0:05:30]} 14. cxb6 {[%emt 0:04:30]} axb6 $15 {[%emt 0:00:30]} 15. Bb5+ {[%emt 0:03:30]} c6 {[%emt 0:01:30]} 16. Bd3 {[%emt 0:00:30]} b5 {[%emt 0:10:30]} 17. Ke2 {[%emt 0:00:30]} Kd7 {[%emt 0:00:30]} 18. Rhb1 {[%emt 0:08:30]} Ba3 {[%emt 0:00:30]} 19. Kd2 {[%emt 0:02:30]} h5 {[%emt 0:05:30]} 20. Kc2 {[%emt 0:01:30]} Ra6 {[%emt 0:10:30]} 21. h3 {[%emt 0:10:30]} Rha8 {[%emt 0:01:30]} 22. Bd2 {[%emt 0:02:30]} Be7 {[%emt 0:02:30]} 23. Rb2 {[%emt 0:06:30]} Nb7 {[%emt 0:04:30]} 24. c4 {[%emt 0:14:30]} Nd6 {[%emt 0:02:30]} 25. cxb5 {[%emt 0:00:30]} cxb5 {[%emt 0:00:30]} 26. Bf4 {[%emt 0:04:30]} Bf6 {[%emt 0:02:30]} 27. Be5 {[%emt 0:00:30]} Ra4 {[%emt 0:00:30]} 28. Rxb5 {[%emt 0:00:30]} Rxa2+ {[%emt 0:00:30]} 29. Rxa2 {[%emt 0:00:30]} Rxa2+ {[%emt 0:00:30]} 30. Rb2 {[%emt 0:00:30]} Rxb2+ {[%emt 0:00:30]} 31. Kxb2 {[%emt 0:00:30]} Bxe5 {[%emt 0:00:30]} 32. dxe5 {[%emt 0:00:30]} Nf5 {[%emt 0:14:15]} 33. Kc3 {[%emt 0:02:00]} Nh4 {[%emt 0:02:31]} 34. Be2 {[%emt 0:02:40]} Ng6 {[%emt 0:04:09]} 35. Kd4 {[%emt 0:00:02]} Nf4 {[%emt 0:00:31]} 36. Bb5+ {[%emt 0:00:41]} Kd8 {[%emt 0:01:23]} 37. Bf1 {[%emt 0:05:27]} h4 {[%emt 0:01:40]} 38. Ke4 {[%emt 0:00:47]} g5 {[%emt 0:00:02]} 39. Kd4 {[%emt 0:00:00]} Kc7 {[%emt 0:00:58]} 40. Kc5 Ng6 {[%emt 0:00:17]} 41. Kd4 {[%emt 0:00:36]} Kc6 {[%emt 0:02:50]} 42. Bd3 {[%emt 0:00:06]} Nf4 {[%emt 0:01:19]} 43. Bf1 {[%emt 0:00:01]} Kb6 {[%emt 0:00:00]} 44. Kc4 {[%emt 0:00:12]} Ng6 {[%emt 0:02:57]} 45. Kd4 {[%emt 0:00:02]} Ka5 {[%emt 0:01:05]} 46. Kc5 {[%emt 0:04:51]} Nxe5 {[%emt 0:00:07]} 47. Kd6 {[%emt 0:00:16]} Nxf3 {[%emt 0:01:03]} 48. Ke7 {[%emt 0:00:05]} Kb4 {[%emt 0:05:34]} 1/2-1/2

[Event "10th IM Marmaris Karia 2019"]
[Site "Marmaris"]
[Date "2019.10.18"]
[Round "4.2"]
[White "Darban, Morteza"]
[Black "Sahin, Ozgun"]
[Result "0-1"]
[ECO "D48"]
[WhiteElo "2285"]
[BlackElo "2224"]
[Annotator "NA"]
[PlyCount "76"]
[EventDate "2019.10.19"]
[EventType "schev"]
[EventCountry "TUR"]
[SourceTitle "playchess.com"]
[Source "ChessBase"]
[SourceQuality "1"]
[TimeControl "5400+30"]

1. d4 {[%emt 0:03:30]} d5 {[%emt 0:00:30]} 2. c4 {[%emt 0:00:00]} c6 {[%emt 0:00:30]} 3. Nf3 {[%emt 0:02:00]} Nf6 {[%emt 0:00:30]} 4. Nc3 {[%emt 0:00:30]} e6 {[%emt 0:02:30]} 5. e3 {[%emt 0:03:30]} Nbd7 {[%emt 0:00:30]} 6. Bd3 {[%emt 0:00:30]} dxc4 {[%emt 0:00:30]} 7. Bxc4 {[%emt 0:00:00]} b5 {[%emt 0:00:30]} 8. Bd3 {[%emt 0:00:00]} Bb7 {[%emt 0:01:30]} 9. O-O {[%emt 0:00:30]} a6 {[%emt 0:00:00]} 10. e4 {[%emt 0:14:30]} c5 {[%emt 0:04:00]} 11. d5 {[%emt 0:01:30]} Qc7 {[%emt 0:12:30]} 12. dxe6 {[%emt 0:02:30]} fxe6 {[%emt 0:00:00]} 13. Qe2 $11 {[%emt 0:03:30]} c4 {[%emt 0:08:00]} 14. Bc2 {[%emt 0:00:00]} Be7 {[%emt 0:05:30]} 15. a3 {[%emt 0:01:00]} O-O {[%emt 0:01:30]} 16. Bg5 {[%emt 0:00:30]} Bc5 {[%emt 0:06:30]} 17. Rad1 {[%emt 0:01:30]} Ne5 {[%emt 0:01:30]} 18. Nxe5 {[%emt 0:09:30]} Qxe5 {[%emt 0:00:30]} 19. Be3 {[%emt 0:09:30]} Bxe3 {[%emt 0:04:30]} 20. Qxe3 {[%emt 0:00:30]} Ng4 {[%emt 0:03:30]} 21. Qg3 {[%emt 0:04:30]} Qxg3 {[%emt 0:00:30]} 22. hxg3 {[%emt 0:00:30]} Rad8 {[%emt 0:00:00]} 23. Rfe1 {[%emt 0:01:30]} Rxd1 {[%emt 0:02:00]} 24. Nxd1 {[%emt 0:00:30]} a5 {[%emt 0:01:30]} 25. f3 {[%emt 0:00:00]} Ne5 {[%emt 0:00:30]} 26. f4 {[%emt 0:07:00]} Nc6 {[%emt 0:00:30]} 27. Nc3 {[%emt 0:00:00]} Nd4 {[%emt 0:00:30]} 28. Bb1 {[%emt 0:02:00]} b4 {[%emt 0:02:30]} 29. axb4 {[%emt 0:00:30]} axb4 {[%emt 0:00:00]} 30. Ne2 {[%emt 0:04:30]} Nxe2+ {[%emt 0:03:00]} 31. Rxe2 {[%emt 0:00:00]} Rd8 {[%emt 0:00:30]} 32. Kf2 {[%emt 0:00:00]} Ba6 {[%emt 0:03:30]} 33. e5 {[%emt 0:03:30]} c3 {[%emt 0:00:30]} 34. Rc2 {[%emt 0:00:00]} Bd3 {[%emt 0:00:30]} 35. Rc1 {[%emt 0:00:00]} Bxb1 {[%emt 0:01:30]} 36. Rxb1 {[%emt 0:00:30]} Rd2+ {[%emt 0:00:30]} 37. Kf3 {[%emt 0:00:30]} c2 {[%emt 0:00:30]} 38. Rc1 {[%emt 0:00:30]} b3 0-1

[Event "10th IM Marmaris Karia 2019"]
[Site "Marmaris"]
[Date "2019.10.18"]
[Round "4.3"]
[White "Rasulov, Vugar"]
[Black "Citak, Selim"]
[Result "1-0"]
[ECO "D37"]
[WhiteElo "2506"]
[BlackElo "2210"]
[Annotator "ChessBase"]
[PlyCount "113"]
[EventDate "2019.10.19"]
[EventType "schev"]
[EventCountry "TUR"]
[SourceTitle "playchess.com"]
[Source "ChessBase"]
[SourceQuality "1"]
[TimeControl "5400+30"]

1. d4 {[%emt 0:00:30]} d5 {[%emt 0:00:30]} 2. Nf3 {[%emt 0:00:30]} Nf6 {[%emt 0:00:30]} 3. c4 {[%emt 0:00:30]} e6 {[%emt 0:00:30]} 4. Nc3 {[%emt 0:00:30]} Be7 {[%emt 0:00:30]} 5. Bf4 {[%emt 0:00:30]} O-O {[%emt 0:00:30]} 6. e3 {[%emt 0:01:30]} c5 {[%emt 0:00:30]} 7. dxc5 {[%emt 0:00:00]} Bxc5 {[%emt 0:01:30]} 8. Qc2 {[%emt 0:01:00]} Nc6 {[%emt 0:01:30]} 9. a3 {[%emt 0:01:30]} Qa5 {[%emt 0:04:30]} 10. Nd2 {[%emt 0:00:30]} Be7 {[%emt 0:00:30]} 11. O-O-O {[%emt 0:00:30]} a6 {[%emt 0:12:30]} 12. g4 {[%emt 0:03:30]} e5 {[%emt 0:06:30]} 13. g5 {[%emt 0:02:30]} exf4 {[%emt 0:12:30]} 14. gxf6 {[%emt 0:01:30]} Bxf6 {[%emt 0:00:30]} 15. Nxd5 {[%emt 0:00:30]} fxe3 {[%emt 0:05:30]} 16. fxe3 {[%emt 0:00:30]} Be5 {[%emt 0:03:30]} 17. Bd3 {[%emt 0:00:30]} h6 {[%emt 0:01:30]} 18. c5 {[%emt 0:02:30]} Be6 {[%emt 0:05:30]} 19. Nb3 {[%emt 0:02:30]} Qa4 {[%emt 0:02:30]} 20. Bc4 {[%emt 0:02:30]} Bxd5 {[%emt 0:02:30]} 21. Rxd5 {[%emt 0:00:30]} Rad8 {[%emt 0:00:30]} 22. Rxd8 {[%emt 0:01:30]} Nxd8 {[%emt 0:02:30]} 23. Rd1 {[%emt 0:03:30]} Kh8 {[%emt 0:02:30]} 24. h3 {[%emt 0:00:30]} Qc6 {[%emt 0:02:30]} 25. Bd5 {[%emt 0:00:30]} Qc7 {[%emt 0:00:30]} 26. Kb1 {[%emt 0:00:30]} Nc6 {[%emt 0:01:30]} 27. Qe4 {[%emt 0:00:30]} Bf6 {[%emt 0:01:30]} 28. Bxc6 {[%emt 0:05:30]} bxc6 {[%emt 0:00:30]} 29. Rd6 {[%emt 0:00:30]} Rb8 {[%emt 0:01:30]} 30. Ka2 {[%emt 0:01:30]} Qb7 {[%emt 0:01:30]} 31. Qa4 {[%emt 0:04:30]} Rc8 {[%emt 0:00:30]} 32. Nd4 {[%emt 0:08:30]} Rb8 {[%emt 0:00:00]} 33. Qb3 {[%emt 0:01:30]} Qa7 {[%emt 0:04:00]} 34. Qc3 {[%emt 0:01:30]} Qb7 {[%emt 0:02:30]} 35. Qb3 {[%emt 0:05:30]} Qa7 {[%emt 0:00:00]} 36. Qc2 {[%emt 0:03:30]} Qb7 {[%emt 0:00:00]} 37. Nb3 {[%emt 0:02:30]} a5 {[%emt 0:00:30]} 38. Qc4 {[%emt 0:00:30]} Be5 {[%emt 0:00:30]} 39. Rd2 {[%emt 0:00:30]} f6 {[%emt 0:00:30]} 40. h4 {[%emt 0:00:30]} Qb5 {[%emt 0:00:30]} 41. Qxb5 {[%emt 0:00:30]} Rxb5 {[%emt 0:00:30]} 42. a4 {[%emt 0:00:30]} Rb4 {[%emt 0:00:30]} 43. Ka3 {[%emt 0:01:30]} g5 {[%emt 0:12:02]} 44. hxg5 {[%emt 0:00:30]} fxg5 {[%emt 0:00:18]} 45. Nxa5 {[%emt 0:00:30]} Re4 {[%emt 0:01:01]} 46. Nxc6 {[%emt 0:00:30]} Rxe3+ {[%emt 0:00:31]} 47. Kb4 {[%emt 0:00:00]} Bg3 {[%emt 0:01:16]} 48. Kc4 {[%emt 0:01:00]} Re8 {[%emt 0:03:18]} 49. a5 {[%emt 0:00:30]} h5 {[%emt 0:00:36]} 50. a6 {[%emt 0:00:30]} Bf4 {[%emt 0:01:00]} 51. Rd8 {[%emt 0:00:30]} Rxd8 {[%emt 0:00:49]} 52. Nxd8 {[%emt 0:00:00]} Bb8 {[%emt 0:00:31]} 53. Nc6 {[%emt 0:00:00]} g4 {[%emt 0:00:27]} 54. Nxb8 {[%emt 0:00:30]} g3 {[%emt 0:00:05]} 55. a7 {[%emt 0:00:00]} g2 {[%emt 0:00:01]} 56. a8=Q {[%emt 0:00:00]} g1=Q {[%emt 0:00:06]} 57. Nd7+ {[%emt 0:00:30]} 1-0